lending/lending_fUSD_20260124
["ID","MTS","AMOUNT","RATE_DAILY","PERIOD"]
[403189500,1769259146727,-500.0,0.00011578,2]
[403189501,1769259146755,-151.0,0.00011578,2]
[403189502,1769259146783,-500.0,0.00011578,2]
[403189503,1769259146812,-151.0,0.00011578,2]
[403189504,1769259146841,-500.0,0.00011578,2]
[403189505,1769259146870,-500.0,0.00011578,2]
[403189506,1769259146903,-151.0,0.00011578,2]
[403189507,1769259146932,-500.0,0.00011578,2]
[403189508,1769259146961,-334.33697893,0.00011578,2]
[403189509,1769259146990,-151.0,0.00011578,2]
[403189510,1769259147019,-500.0,0.00011578,2]
[403189511,1769259147346,-500.0,0.00011578,2]
[403189512,1769259147574,-151.0,0.00011578,2]
[403189513,1769259147603,-500.0,0.00011578,2]
[403189514,1769259147632,-151.0,0.00011578,2]
[403189515,1769259147660,-500.0,0.00011578,2]
[403189516,1769259147689,-151.0,0.00011578,2]
[403189517,1769259147718,-500.0,0.00011578,2]
[403189518,1769259147747,-151.0,0.00011578,2]
[403189519,1769259147777,-151.0,0.00011578,2]
[403189520,1769259147806,-151.0,0.00011578,2]
[403189521,1769259147835,-151.0,0.00011578,2]
[403189522,1769259147864,-151.0,0.00011578,2]
[403189523,1769259147895,-151.0,0.00011578,2]
[403189524,1769259147924,-151.0,0.00011578,2]
[403189525,1769259147953,-151.0,0.00011578,2]
[403189526,1769259147982,-500.0,0.00011578,2]
[403189527,1769259148014,-151.0,0.00011578,2]
[403189528,1769259148045,-151.0,0.00011578,2]
[403189529,1769259148075,-151.0,0.00011578,2]
[403189530,1769259148106,-151.0,0.00011578,2]
[403189531,1769259148135,-151.0,0.00011578,2]
[403189532,1769259148168,-151.0,0.00011578,2]
[403189533,1769259148197,-300.0,0.00012283,2]
[403189534,1769259149059,151.0,0.00011578,2]
[403189535,1769259149646,500.0,0.000176,30]
[403189536,1769259149844,115.01,0.00011578,2]
[403189537,1769259149868,35.99,0.00011578,2]
[403189538,1769259150383,151.0,0.00011578,2]
[403189539,1769259150553,500.0,0.000176,30]
[403189540,1769259150747,200.10887185,0.00011578,2]
[403189541,1769259151317,500.0,0.000176,30]
[403189542,1769259151780,500.0,0.000176,30]
[403189543,1769259152253,500.0,0.000176,30]
[403189544,1769259153361,500.0,0.000176,30]
[403189545,1769259153414,500.0,0.000176,30]
[403189546,1769259153927,500.0,0.000176,30]
[403189547,1769259155336,500.0,0.000176,30]
[403189548,1769259156054,500.0,0.000176,30]
[403189549,1769259156312,500.0,0.000176,30]
[403189550,1769259156682,154.38941307,0.000176,30]
[403189551,1769259156821,500.0,0.000176,30]
[403189552,1769259156881,500.0,0.000176,30]
[403189553,1769259157286,500.0,0.000176,30]
[403189554,1769259157379,500.0,0.000176,30]
[403189555,1769259157847,505.10923065,0.000176,30]
[403189556,1769259158396,500.0,0.00011578,2]
[403189557,1769259159633,500.0,0.00011578,2]
[403189558,1769259159795,500.0,0.00011578,2]
[403189559,1769259160214,500.0,0.00011578,2]
[403189560,1769259160932,500.0,0.00011578,2]
[403189561,1769259161552,500.0,0.00011578,2]
[403189562,1769259162189,500.0,0.00011578,2]
[403189564,1769259162823,500.0,0.00011578,2]
[403189565,1769259181196,-151.69590403,0.00011578,2]
[403189566,1769259184181,-322.87212497,0.00011578,2]
[403189567,1769259186701,-25.431971,0.00011578,2]
[403189568,1769259186727,-282.32205396,0.00011578,2]
[403189569,1769259190229,-217.67794604,0.00011578,2]
[403189570,1769259190251,-364.29993488,0.00011578,2]
[403189571,1769259191878,240.71,0.00013577,7]
[403189572,1769259194813,-92.97570726,0.00011578,2]
[403189573,1769259194834,-74.19961902,0.00011578,2]
[403189574,1769259196874,-161.97734173,0.00011578,2]
[403189575,1769259196899,-56.9333524,0.00011578,2]
[403189576,1769259226367,-183.7866476,0.00011578,2]
[403189577,1769259226389,-107.25520702,0.00011578,2]
[403189578,1769259228595,-277.90939824,0.00011578,2]
[403189579,1769259228616,-91.33615228,0.00011578,2]
[403189580,1769259230649,-59.66384772,0.00011578,2]
[403189581,1769259230674,-242.33615228,0.00011578,2]
[403189582,1769259234241,-230.01,0.000115,2]
[403189583,1769259234264,-20.41395574,0.00011578,2]
[403189584,1769259253911,-122.41449724,0.00011578,2]
[403189585,1769259253939,-151.0,0.00011578,2]
[403189586,1769259254283,-509.54306742,0.00011595,2]
[403189587,1769259254517,-10000.01,0.00011595,2]
[403189588,1769259254568,-5446.61477358,0.00011595,2]
[403189589,1769259254577,-560.0,0.00012283,2]
[403189590,1769259254586,-300.0,0.00012283,2]
[403189591,1769259254596,-300.0,0.00012283,2]
[403189592,1769259255116,-277.80208557,0.00012284,2]
[403189593,1769259257148,-259.49426084,0.00012284,2]
[403189594,1769259258672,-256.57295727,0.00012284,2]
[403189595,1769259260750,-221.38599981,0.00012284,2]
[403189596,1769259264602,-386.3893731,0.00012284,2]
[403189597,1769259268407,-404.41989752,0.00012284,2]
[403189598,1769259269784,-303.74099113,0.00012284,2]
[403189600,1769259345792,-3230.8236793,0.00011685,2]
[403189601,1769259348290,-253.0140025,0.00012184,2]
[403189602,1769259349752,-209.20770058,0.00012184,2]
[403189603,1769259351229,-37.77829692,0.00012184,2]
[403189604,1769259351257,-158.98184327,0.00012184,2]
[403189605,1769259353176,-228.64341325,0.00012184,2]
[403189606,1769259356894,-360.95543235,0.00012184,2]
[403189607,1769259358437,-596.81575953,0.00012184,2]
[403189608,1769259361363,300.0,0.00012183,2]
[403189609,1769259362086,-296.64785053,0.00012184,2]
[403189610,1769259364832,-178.97356656,0.00012184,2]
[403189611,1769259366013,-380.0870979,0.00012184,2]
[403189612,1769259367570,-290.92210688,0.00012184,2]
[403189613,1769259370742,-272.06885572,0.00012184,2]
[403189614,1769259374656,-191.79568348,0.00012184,2]
[403189615,1769259376121,3238.3626414,0.00012183,2]
[403189616,1769259376145,10000.01,0.00012183,2]
[403189617,1769259376169,5853.89814627,0.00012183,2]
[403189618,1769259378958,-579.65078794,0.00012184,2]
[403189619,1769259379025,4146.11185373,0.00011233,2]
[403189620,1769259379049,10000.01,0.00011233,2]
[403189621,1769259379073,1465.03814627,0.00011233,2]
[403189622,1769259381041,-248.356892,0.00012184,2]
[403189623,1769259383040,-156.30632335,0.00012184,2]
[403189624,1769259385670,-254.84613125,0.00012184,2]
[403189625,1769259390154,-409.01146475,0.00012184,2]
[403189626,1769259392036,-472.8156527,0.00012184,2]
[403189627,1769259394113,-423.18500909,0.00012184,2]
[403189628,1769259397323,-174.61919141,0.00012184,2]
[403189629,1769259398777,-250.85993553,0.00012184,2]
[403189630,1769259400869,-175.39869777,0.00012184,2]
[403189631,1769259404311,-200.15428726,0.00012184,2]
[403189632,1769259407391,-154.97974583,0.00012184,2]
[403189633,1769259408802,-207.09347675,0.00012184,2]
[403189634,1769259410308,-405.29924118,0.00012184,2]
[403189635,1769259412293,-456.1477153,0.00012184,2]
[403189636,1769259414224,-628.74678196,0.00012184,2]
[403189637,1769259415735,-387.92974064,0.00012184,2]
[403189638,1769259417990,-435.28879196,0.00012184,2]
[403189640,1769259421271,300.0,0.00012183,2]
[403189642,1769259422514,-203.33800107,0.00012184,2]
[403189643,1769259424434,-302.0,0.00012184,2]
[403189644,1769259425928,-419.00643504,0.00012184,2]
[403189645,1769259425967,194.0,0.00012183,2]
[403189646,1769259428555,-256.54516795,0.00012184,2]
[403189647,1769259430218,-455.80074815,0.00012184,2]
[403189648,1769259431756,-199.77571834,0.00012184,2]
[403189649,1769259433253,-209.40344106,0.00012184,2]
[403189650,1769259435775,-160.14991565,0.00012184,2]
[403189651,1769259437907,-344.33935801,0.00012184,2]
[403189652,1769259439584,-171.66569563,0.00012184,2]
[403189653,1769259440836,-236.39367648,0.00012184,2]
[403189654,1769259442282,-1129.58360968,0.00012184,2]
[403189655,1769259444590,-209.21893678,0.00012184,2]
[403189656,1769259447650,-358.06244773,0.00012184,2]
[403189657,1769259447909,500.0,0.000176,30]
[403189658,1769259449775,-219.33823485,0.00012184,2]
[403189659,1769259453496,-310.54156861,0.00012184,2]
[403189660,1769259455464,-196.2339426,0.00012184,2]
[403189661,1769259456979,-170.11123983,0.00012184,2]
[403189662,1769259458468,-165.01251862,0.00012184,2]
[403189663,1769259460800,-229.37692669,0.00012184,2]
[403189664,1769259461974,-345.94478581,0.00012184,2]
[403189665,1769259464636,-359.42266814,0.00012184,2]
[403189666,1769259468432,-158.02750645,0.00012184,2]
[403189667,1769259472256,-203.14186998,0.00012184,2]
[403189668,1769259474222,393.03560242,0.00012084,2]
[403189669,1769259474285,-255.69688058,0.00012184,2]
[403189670,1769259477542,-280.39885499,0.00012184,2]
[403189671,1769259479685,-374.88298437,0.00012184,2]
[403189672,1769259482025,300.0,0.00012183,2]
[403189673,1769259482771,-263.01029106,0.00012184,2]
[403189674,1769259511346,-277.1528763,0.00012184,2]
[403189675,1769259513370,-232.09640326,0.00012184,2]
[403189676,1769259514798,-227.21,0.00012184,2]
[403189677,1769259516637,-236.90060527,0.00012184,2]
[403189678,1769259518578,-182.45321182,0.00012184,2]
[403189679,1769259520113,-313.91034674,0.00012184,2]
[403189680,1769259522195,-202.2191889,0.00012184,2]
[403189681,1769259527555,-237.64234053,0.00012184,2]
[403189682,1769259529542,-305.4479027,0.00012184,2]
[403189683,1769259532283,7361.2819836,0.00012084,2]
[403189684,1769259532820,-193.18732749,0.00012184,2]
[403189685,1769259534862,-205.96607681,0.00012184,2]
[403189686,1769259536919,-238.19873751,0.00012184,2]
[403189687,1769259538417,150.27952122,0.00012084,2]
[403189688,1769259539075,-207.93275091,0.00012184,2]
[403189689,1769259541582,-262.80801449,0.00012184,2]
[403189690,1769259543058,-164.736033,0.00012184,2]
[403189691,1769259544530,-282.93022308,0.00012184,2]
[403189692,1769259546119,-461.77467345,0.00012184,2]
[403189693,1769259552086,-200.22499774,0.00012184,2]
[403189694,1769259554168,-159.99371674,0.00012184,2]
[403189695,1769259556818,-392.40814424,0.00012184,2]
[403189696,1769259559960,-184.41117946,0.00012184,2]
[403189697,1769259561881,-217.55989941,0.00012184,2]
[403189698,1769259564161,-458.39342186,0.00012184,2]
[403189699,1769259567463,-179.954532,0.00012184,2]
[403189700,1769259569138,-151.63403555,0.00012184,2]
[403189701,1769259572791,-288.3268377,0.00012184,2]
[403189702,1769259575209,-251.32815818,0.00012184,2]
[403189703,1769259576695,-155.23453113,0.00012184,2]
[403189704,1769259581579,-406.49236603,0.00012184,2]
[403189706,1769259585249,-297.21630414,0.00012184,2]
[403189707,1769259588768,-413.47485461,0.00012184,2]
[403189708,1769259591393,-354.73942231,0.00012184,2]
[403189709,1769259592513,237.0302,0.00012084,2]
[403189710,1769259594088,-401.16699822,0.00012184,2]
[403189711,1769259597212,-205.78210821,0.00012184,2]
[403189712,1769259598760,-153.683692,0.00012184,2]
[403189713,1769259601238,300.0,0.00012183,2]
[403189714,1769259601591,764.38269276,0.00012183,2]
[403189715,1769259601613,435.61730724,0.00012183,2]
[403189716,1769259601876,-209.45575477,0.00012184,2]
[403189718,1769259604755,-501.00782437,0.00012184,2]
[403189723,1769259606958,-159.27633665,0.00012184,2]
[403189727,1769259609639,-532.67699838,0.00012184,2]
[403189728,1769259613638,-286.6730619,0.00012184,2]
[403189729,1769259614614,262.02373494,0.00012084,2]
[403189730,1769259615050,-295.66994095,0.00012184,2]
[403189731,1769259617009,-346.98688801,0.00012184,2]
[403189732,1769259620057,-244.33214218,0.00012184,2]
[403189734,1769259622506,-178.70738696,0.00012184,2]
[403189735,1769259624675,-167.44743681,0.00012184,2]
[403189736,1769259626744,-211.16229621,0.00012184,2]
[403189737,1769259629009,-359.00279783,0.00012184,2]
[403189738,1769259633357,-192.88371431,0.00012184,2]
[403189739,1769259634625,-313.32888976,0.00012184,2]
[403189740,1769259637171,-194.78001737,0.00012184,2]
[403189741,1769259639317,-175.19705742,0.00012184,2]
[403189742,1769259640859,-360.06718627,0.00012184,2]
[403189743,1769259644671,-323.15251754,0.00012184,2]
[403189744,1769259646254,500.0,0.00012183,2]
[403189745,1769259646291,456.59868591,0.00012183,2]
[403189746,1769259646335,386.42064552,0.00012183,2]
[403189747,1769259646374,490.25909049,0.00012183,2]
[403189748,1769259646478,500.0,0.00012183,2]
[403189749,1769259647160,500.0,0.00012183,2]
[403189750,1769259647257,625.55176412,0.00012183,2]
[403189751,1769259647872,-188.41388948,0.00012184,2]
[403189752,1769259649053,-330.14659575,0.00012184,2]
[403189753,1769259650445,243.28339488,0.00012183,2]
[403189754,1769259652749,-350.63134384,0.00012184,2]
[403189755,1769259653575,5600.2553769,0.00012184,2]
[403189756,1769259653610,4399.7446231,0.00012184,2]
[403189757,1769259654776,-230.81844795,0.00012184,2]
[403189758,1769259658263,-417.16755992,0.00012184,2]
[403189759,1769259659704,-194.48627414,0.00012184,2]
[403189760,1769259660405,364.9025,0.00012084,2]
[403189761,1769259662714,5235.3628769,0.00012184,2]
[403189762,1769259663084,-199.09395867,0.00012184,2]
[403189763,1769259665039,-387.2902724,0.00012184,2]
[403189764,1769259668328,-249.57927344,0.00012084,2]
[403189765,1769259671358,-195.0,0.00012084,2]
[403189766,1769259673880,10000.0,0.00012074,2]
[403189767,1769259673987,-294.89375151,0.00012084,2]
[403189768,1769259676036,-240.29600961,0.00012084,2]
[403189769,1769259677906,-209.51412181,0.00012084,2]
[403189770,1769259680578,-250.4054372,0.00012084,2]
[403189771,1769259683129,-249.48742691,0.00012084,2]
[403189772,1769259684704,-231.78535653,0.00012084,2]
[403189773,1769259686943,-325.05363435,0.00012084,2]
[403189774,1769259688489,-155.66064199,0.00012084,2]
[403189775,1769259690035,-200.28840069,0.00012084,2]
[403189776,1769259691942,-300.0,0.00012084,2]
[403189777,1769259692552,0.01,0.0001194,2]
[403189778,1769259692577,2924.775,0.0001194,2]
[403189779,1769259692636,210.678,0.0001194,2]
[403189780,1769259693473,6864.557,0.00012074,2]
[403189781,1769259693497,3135.443,0.00012074,2]
[403189782,1769259694571,-308.68261763,0.00012084,2]
[403189783,1769259696676,-232.38037855,0.00012084,2]
[403189784,1769259698795,-267.61962145,0.00012084,2]
[403189785,1769259700850,-294.0938562,0.00012084,2]
[403189786,1769259702712,-280.0356392,0.00012084,2]
[403189787,1769259704746,-390.66590947,0.00012084,2]
[403189788,1769259709008,-214.79177468,0.00012084,2]
[403189789,1769259711071,-353.64986,0.00012084,2]
[403189790,1769259719892,-165.38809843,0.00012084,2]
[403189791,1769259723705,-300.0,0.00012084,2]
[403189792,1769259728469,-381.65287247,0.00012084,2]
[403189793,1769259731113,-317.86534778,0.00012084,2]
[403189794,1769259734814,-156.04509437,0.00012084,2]
[403189795,1769259736284,-221.80068755,0.00012084,2]
[403189796,1769259740917,-315.73649027,0.00012084,2]
[403189797,1769259742661,-170.16172132,0.00012084,2]
[403189798,1769259745988,-281.96627424,0.00012084,2]
[403189799,1769259746576,500.0,0.000176,30]
[403189800,1769259747517,-300.0,0.00012084,2]
[403189801,1769259752088,-300.0,0.00012084,2]
[403189802,1769259755246,-154.69979071,0.00012084,2]
[403189803,1769259756712,-235.34687346,0.00012084,2]
[403189804,1769259758910,-451.24011516,0.00012084,2]
[403189805,1769259760443,-303.83949465,0.00012083,2]
[403189806,1769259762550,-196.16050535,0.00012083,2]
[403189807,1769259762572,-103.83949465,0.00012083,2]
[403189808,1769259764679,-215.77958549,0.00012083,2]
[403189809,1769259764702,-105.72305528,0.00012083,2]
[403189810,1769259768143,-237.45830806,0.00012083,2]
[403189811,1769259768164,-130.08227694,0.00012083,2]
[403189812,1769259769636,-140.41217492,0.00012083,2]
[403189813,1769259769659,-240.80712492,0.00012083,2]
[403189814,1769259771129,-189.93713,0.00012083,2]
[403189815,1769259774298,-159.47121487,0.00012082,2]
[403189816,1769259774330,-69.25574508,0.00012083,2]
[403189817,1769259774354,-181.97124119,0.00012083,2]
[403189818,1769259776466,-183.85483595,0.00012083,2]
[403189822,1769259957576,154.56726132,0.000226,120]
[403189851,1769260095835,-155.24071074,0.00012,2]
[403189857,1769260098937,-151.60921783,0.00012,2]
[403189860,1769260100429,-251.22428166,0.00012,2]
[403189861,1769260101946,-116.05992955,0.00012,2]
[403189862,1769260101972,-250.0,0.00012041,2]
[403189863,1769260101994,-31.10657096,0.00012066,2]
[403189864,1769260107292,-153.21260792,0.00012066,2]
[403189866,1769260109835,-65.68082112,0.00012066,2]
[403189867,1769260109859,-122.06015774,0.00012083,2]
[403189868,1769260109880,-233.45275391,0.00012083,2]
[403189869,1769260109902,-105.70210688,0.00012083,2]
[403189877,1769260182339,180.0,0.000145,4]
[403189908,1769260215545,-188.94343997,0.00012083,2]
[403189909,1769260215568,-81.82733551,0.00012083,2]
[403189930,1769260231653,-168.17266449,0.00012083,2]
[403189931,1769260231663,-300.0,0.00012083,2]
[403189932,1769260231673,-612.33403609,0.00012083,2]
[403189933,1769260231708,-349.17285286,0.00012083,2]
[403189934,1769260231719,-238.49311105,0.00012083,2]
[403189935,1769260231729,-300.0,0.00012083,2]
[403189936,1769260231739,-249.0,0.00012083,2]
[403189937,1769260231748,-2500.0,0.00012084,2]
[403189938,1769260231757,-383.90987714,0.00012084,2]
[403189939,1769260231766,-2460.98912777,0.00012084,2]
[403189940,1769260231778,-656.09435565,0.00012084,2]
[403189941,1769260231789,-434.57723662,0.00012084,2]
[403189942,1769260231801,-3073.4930652,0.00012084,2]
[403189943,1769260231810,-150.27952116,0.00012084,2]
[403189944,1769260231819,-17242.49901263,0.00012084,2]
[403189945,1769260231830,-317.52863556,0.00012084,2]
[403189946,1769260231844,-174.68248996,0.00012084,2]
[403189948,1769260232248,-300.0,0.00012102,2]
[403189949,1769260232259,-356.39989859,0.00012102,2]
[403189950,1769260232268,-2815.38879959,0.00012174,2]
[403189951,1769260232277,-500.0,0.00012176,2]
[403189952,1769260232286,-500.0,0.00012176,2]
[403189953,1769260232295,-500.0,0.00012176,2]
[403189954,1769260232307,-500.0,0.00012176,2]
[403189955,1769260232316,-500.0,0.00012176,2]
[403189956,1769260232325,-500.0,0.00012176,2]
[403189957,1769260232335,-500.0,0.00012176,2]
[403189958,1769260232344,-500.0,0.00012176,2]
[403189959,1769260232354,-500.0,0.00012176,2]
[403189960,1769260232363,-453.73138111,0.00012176,2]
[403189961,1769260232372,-151.0,0.00012176,2]
[403189962,1769260232382,-151.0,0.00012176,2]
[403189963,1769260232391,-151.0,0.00012176,2]
[403189964,1769260232400,-151.0,0.00012176,2]
[403189965,1769260232410,-151.0,0.00012176,2]
[403189966,1769260232419,-151.0,0.00012176,2]
[403189967,1769260232428,-151.0,0.00012176,2]
[403189968,1769260232437,-151.0,0.00012176,2]
[403189969,1769260232446,-151.0,0.00012176,2]
[403189970,1769260232460,-151.0,0.00012176,2]
[403189971,1769260232469,-151.0,0.00012176,2]
[403189972,1769260232479,-240.22695434,0.00012183,2]
[403189973,1769260232489,-500.0,0.00012183,2]
[403189974,1769260232499,-223.7333561,0.00012183,2]
[403189975,1769260232508,-189.3461163,0.00012183,2]
[403189976,1769260232518,-541.52036442,0.00012183,2]
[403189977,1769260232528,-4178.25289203,0.00012184,2]
[403189978,1769260232539,-91192.05121665,0.00012184,2]
[403189979,1769260232550,-854.54723895,0.00012184,2]
[403189997,1769260237859,-1159.41324796,0.00012184,2]
[403189999,1769260238018,-2594.00113,0.00012184,2]
[403190098,1769260239889,-871168.91799559,0.00012184,2]
[403190099,1769260239899,-500.0,0.00012184,2]
[403190100,1769260239908,-151.0,0.00012184,2]
[403190101,1769260239917,-15389.11,0.00012184,2]
[403190102,1769260239926,-2367.73,0.00012184,2]
[403190103,1769260239935,-1200.24,0.00012184,2]
[403190104,1769260239946,-385.16460526,0.00012184,2]
[403190105,1769260239956,-138885.47,0.00012452,2]
[403190106,1769260239965,-1200.24,0.00012458,2]
[403190107,1769260239975,-206.58,0.00012482,2]
[403190108,1769260239984,-500.0,0.00012482,2]
[403190109,1769260239993,-5736.13,0.00012712,2]
[403190110,1769260240002,-857.10560289,0.0001272,2]
[403190111,1769260240012,-6625.15378524,0.0001273,2]
[403190112,1769260240021,-17242.4990126,0.0001273,2]
[403190113,1769260240030,-1200.24,0.00012732,2]
[403190114,1769260240049,-453.0,0.00012756,2]
[403190115,1769260240059,-1864.0,0.00012896,2]
[403190116,1769260240068,-353.0,0.00012898,2]
[403190117,1769260240078,-1012.0,0.00012921,2]
[403190118,1769260240087,-1773.0,0.00012923,2]
[403190119,1769260240097,-611.0,0.00012947,2]
[403190120,1769260240118,-1724.0,0.00012949,2]
[403190121,1769260240134,-1609.0,0.00012975,2]
[403190122,1769260240143,-1107.0,0.00012994,2]
[403190123,1769260240152,-500.0,0.00013,2]
[403190124,1769260240162,-500.0,0.00013,2]
[403190125,1769260240171,-500.0,0.00013,2]
[403190126,1769260240181,-500.0,0.00013,2]
[403190127,1769260240190,-500.0,0.00013,2]
[403190128,1769260240202,-500.0,0.00013,2]
[403190129,1769260240211,-500.0,0.00013,2]
[403190130,1769260240220,-500.0,0.00013,2]
[403190131,1769260240230,-500.0,0.00013,2]
[403190132,1769260240240,-500.0,0.00013,2]
[403190133,1769260240249,-500.0,0.00013,2]
[403190134,1769260240259,-500.0,0.00013,2]
[403190135,1769260240269,-548.13873761,0.00013,2]
[403190136,1769260240278,-500.0,0.00013,2]
[403190137,1769260240287,-500.0,0.00013,2]
[403190138,1769260240296,-500.0,0.00013,2]
[403190139,1769260240305,-500.0,0.00013,2]
[403190140,1769260240316,-500.0,0.00013,2]
[403190141,1769260240325,-500.0,0.00013,2]
[403190142,1769260240335,-500.0,0.00013,2]
[403190143,1769260240345,-1852.42,0.00013,2]
[403190144,1769260240355,-516.0,0.00013001,2]
[403190145,1769260240365,-1200.24,0.00013005,2]
[403190146,1769260240374,-455.0,0.0001302,2]
[403190147,1769260240383,-383.90987711,0.00013053,2]
[403190148,1769260240392,-150.27952116,0.00013053,2]
[403190149,1769260240401,-150.0,0.00013173,2]
[403190150,1769260240413,-250.0,0.000132,2]
[403190151,1769260240422,-230.11088144,0.000132,2]
[403190152,1769260240432,-3230.8236793,0.00013228,2]
[403190153,1769260240441,-406.04,0.00013239,2]
[403190154,1769260240451,-174.68248996,0.00013244,2]
[403190155,1769260240464,-420.0,0.00013263,2]
[403190156,1769260240473,-1200.24,0.00013279,2]
[403190157,1769260240483,-250.0,0.00013291,2]
[403190158,1769260240492,-300.0,0.00013291,2]
[403190159,1769260240502,-1680.0,0.00013291,2]
[403190160,1769260240512,-866.27,0.00013348,2]
[403190161,1769260240521,-6625.15378524,0.00013376,2]
[403190162,1769260240531,-17242.4990126,0.00013376,2]
[403190163,1769260240542,-2923.02,0.00013425,2]
[403190164,1769260240552,-317.52863554,0.00013538,2]
[403190165,1769260240562,-1200.24,0.00013553,2]
[403190166,1769260240571,-17950.6888211,0.00013642,2]
[403190167,1769260240580,-233.57,0.00013671,2]
[403190168,1769260240590,-500.0,0.00013698,2]
[403190169,1769260240599,-500.0,0.00013698,2]
[403190170,1769260240609,-500.0,0.00013698,2]
[403190171,1769260240618,-500.0,0.00013698,2]
[403190172,1769260240628,-500.0,0.00013698,2]
[403190173,1769260240638,-500.0,0.00013698,2]
[403190174,1769260240648,-500.0,0.00013698,2]
[403190175,1769260240659,-513.68541825,0.00013698,2]
[403190176,1769260240668,-500.0,0.00013698,2]
[403190177,1769260240678,-500.0,0.00013698,2]
[403190178,1769260240687,-500.0,0.00013698,2]
[403190179,1769260240696,-500.0,0.00013698,2]
[403190180,1769260240706,-500.0,0.00013698,2]
[403190181,1769260240715,-500.0,0.00013698,2]
[403190182,1769260240724,-500.0,0.00013698,2]
[403190183,1769260240734,-636.91,0.00013698,2]
[403190184,1769260240746,-171.84070592,0.00013699,3]
[403190185,1769260240756,-150.07696773,0.00013699,3]
[403190186,1769260240766,-390.36170643,0.00013699,2]
[403190187,1769260240775,-360.04,0.00013699,2]
[403190188,1769260240784,-322.6107,0.00013815,2]
[403190189,1769260240794,-174.61919141,0.00013815,2]
[403190190,1769260240803,-500.0,0.00013815,2]
[403190191,1769260240813,-500.0,0.00013815,2]
[403190192,1769260240822,-854.2589148,0.00013815,2]
[403190193,1769260240831,-500.0,0.00013815,2]
[403190194,1769260240840,-500.0,0.00013815,2]
[403190195,1769260240849,-500.0,0.00013815,2]
[403190196,1769260240858,-500.0,0.00013815,2]
[403190197,1769260240868,-500.0,0.00013815,2]
[403190198,1769260240877,-500.0,0.00013815,2]
[403190199,1769260240886,-500.0,0.00013815,2]
[403190200,1769260240895,-500.0,0.00013815,2]
[403190201,1769260240904,-500.0,0.00013815,2]
[403190202,1769260240914,-500.0,0.00013815,2]
[403190203,1769260240924,-500.0,0.00013815,2]
[403190204,1769260240935,-500.0,0.00013815,2]
[403190205,1769260240945,-500.0,0.00013815,2]
[403190206,1769260240954,-500.0,0.00013815,2]
[403190207,1769260240963,-500.0,0.00013815,2]
[403190208,1769260240972,-500.0,0.00013815,2]
[403190209,1769260240981,-500.0,0.00013815,2]
[403190210,1769260240990,-500.0,0.00013815,2]
[403190211,1769260241000,-250.0,0.00013815,2]
[403190212,1769260241009,-250.0,0.00013815,2]
[403190213,1769260241018,-301.96560903,0.00013815,2]
[403190214,1769260241027,-500.0,0.00013815,2]
[403190215,1769260241036,-500.0,0.00013815,2]
[403190216,1769260241045,-289.41934896,0.00013815,2]
[403190217,1769260241054,-500.0,0.00013815,2]
[403190218,1769260241063,-578.20924308,0.00013815,2]
[403190219,1769260241073,-151.0,0.00013815,2]
[403190220,1769260241371,-151.0,0.00013815,2]
[403190221,1769260241380,-151.0,0.00013815,2]
[403190222,1769260241390,-151.0,0.00013815,2]
[403190223,1769260241399,-151.0,0.00013815,2]
[403190224,1769260241408,-151.0,0.00013815,2]
[403190225,1769260241417,-151.0,0.00013815,2]
[403190226,1769260241426,-151.0,0.00013815,2]